Cogmind - Beta 16 @@@ ROGUE MODE // 2025.12.28 @ 16:33:40 Player: CloudSeaKing Result: Destroyed by SE-H4V(z) with Makeshift Shrapnel Gun Performance ------------- Evolutions (4) 2000 Regions Visited (10) 2000 Robots Destroyed (47) 235 Value Destroyed (1026) 1026 Prototype IDs (18) 360 Alien Tech Used (0) 0 Bonus (600) 600 TOTAL SCORE: 6221 Bonus ------- Registered with UFD 300 Met Imprinter 300 Cogmind --------- Core Integrity 0/850 Matter 47/300 Energy 98/100 System Corruption 16% Temperature Cool (0) Movement Core (50) Location -6/Zion Parts ------- > --- POWER (2) -------- (None) > --- PROPULSION (5) --- (None) > --- UTILITY (5) ------ (None) > --- WEAPON (3) ------- (None) > --- INVENTORY (5) ---- Makeshift Leg Makeshift Transmission Jammer Arc Thrower Slug Cannon Katana Peak State ------------ > --- POWER ------------ Improved Deuterium Engine > --- PROPULSION ------- Makeshift Leg Makeshift Leg Makeshift Leg Makeshift Leg Makeshift Leg > --- UTILITY ---------- Makeshift Terrain Scan Processor Makeshift Transmission Jammer Makeshift ECM Suite Hardened Light Armor Plating > --- WEAPON ----------- Makeshift Shrapnel Gun Makeshift Shrapnel Gun Axe > --- INVENTORY -------- Makeshift Leg Makeshift Transmission Jammer Arc Thrower Slug Cannon Katana [Rating: 51] Favorites ----------- Power Improved Ion Engine Engine Improved Ion Engine Propulsion Light Treads Treads Light Treads Leg Makeshift Leg Utility Hacking Suite Device Seismic Detector Storage Huge Storage Unit Processor Makeshift Terrain Scan Processor Hackware Hacking Suite Protection Hardened Light Armor Plating Weapon Light Assault Rifle Energy Gun Small Laser Ballistic Gun Light Assault Rifle Launcher Rocket Launcher Slashing Weapon Axe Build | -11 -10 -10 -10 -8 -8 -6 -6 -6 -6 -6 ------- Run | Yrd Mat Min Sub Rec Scr Fac Was Fac Low Zio Slots Evolved 8 | . . . . . . 8 . . . . Power 1 | . . . . . . 1 . . . . Propulsion 3 | . . . . . . 3 . . . . Utility 3 | . . . . . . 3 . . . . Weapon 1 | . . . . . . 1 . . . . Parts Attached 46 | 7 7 1 2 5 4 6 1 1 9 3 Power 8 | 1 2 1 1 1 . 1 . . 1 . Engine 8 | 1 2 1 1 1 . 1 . . 1 . Core . | . . . . . . . . . . . Reactor . | . . . . . . . . . . . Propulsion 11 | 2 1 . . 1 2 . . . 4 1 Treads 6 | 2 1 . . 1 2 . . . . . Leg 5 | . . . . . . . . . 4 1 Wheel . | . . . . . . . . . . . Hover . | . . . . . . . . . . . Flight . | . . . . . . . . . . . Utility 13 | 2 . . . 2 1 4 . . 2 2 Device 5 | 1 . . . . . 2 . . 1 1 Storage 3 | 1 . . . 1 1 . . . . . Processor 2 | . . . . . . 1 . . . 1 Hackware 1 | . . . . 1 . . . . . . Protection 2 | . . . . . . 1 . . 1 . Artifact . | . . . . . . . . . . . Weapon 14 | 2 4 . 1 1 1 1 1 1 2 . Energy Gun 2 | 1 1 . . . . . . . . . Energy Cannon . | . . . . . . . . . . . Ballistic Gun 9 | 1 3 . . 1 1 1 . . 2 . Ballistic Cannon . | . . . . . . . . . . . Launcher 2 | . . . 1 . . . 1 . . . Special Weapon . | . . . . . . . . . . . Impact Weapon . | . . . . . . . . . . . Slashing Weapon 1 | . . . . . . . . 1 . . Piercing Weapon . | . . . . . . . . . . . Special Melee Weapon . | . . . . . . . . . . . Unidentified Prototypes . | . . . . . . . . . . . Parts Lost 16 | . . . . 1 . . 3 . . 12 Power 1 | . . . . . . . . . . 1 Propulsion 4 | . . . . . . . . . . 4 Utility 6 | . . . . . . . 2 . . 4 Weapon 5 | . . . . 1 . . 1 . . 3 Highest Loss Streak 12 | . . . . 1 . . 3 . . 12 To Critical Strikes . | . . . . . . . . . . . Average Backups 14 | 3 7 7 8 7 22 19 12 4 4 4 Power 1 | . 1 . . . 2 3 2 1 . . Propulsion . | 2 2 . . . . . . . . . Utility 5 | . 2 4 4 3 8 6 3 1 . 1 Weapon 6 | . 1 3 4 4 10 9 6 2 3 3 Tool/Special . | . . . . . . . . . . . Unused Backups 36 | . 7 2 . 1 8 . 12 . . 6 Power 5 | . 1 . . . 1 . 3 . . . Propulsion 7 | . 4 1 . . 1 . . . . 1 Utility 9 | . . 1 . . 2 . 5 . . 1 Weapon 15 | . 2 . . 1 4 . 4 . . 4 Tool/Special . | . . . . . . . . . . . Average Slot Usage (%) 94 | . 98 99 100 100 100 82 45 2 58 68 Engine 12 | . 14 13 14 14 14 12 7 . 5 5 Treads 24 | . 27 28 28 28 28 20 10 . . . Leg 2 | . . . . . . . . . 23 26 Device 4 | . 14 14 14 1 . 11 7 . 4 9 Storage 12 | . 14 14 14 14 14 6 3 . . . Hackware 8 | . . . . 12 14 . . . . . Ballistic Gun 24 | . 21 28 26 28 28 19 8 . 11 11 Peak Build Rating 51 | 7 9 9 10 12 25 45 45 4 40 51 Average Rating 17 | 5 8 8 9 11 20 44 21 2 35 41 On Entrance 14 | . 7 9 9 10 11 25 45 1 4 40 Avg Prop Armor Cover (%) 11 | . . . . . 11 . . . . 9 Naked Turns 171 | . . . . . . . 40 96 . 35 Heaviest Build 106 | 14 16 15 16 16 91 106 106 3 27 35 Greatest Support 100 | 40 40 40 40 40 50 68 68 3 80 100 Greatest Overweight (x) 3 | . . . . . 3 1 1 . . 2 Average Overweight (x) . | . . . . . 1 1 . . . . Largest Inventory Capacity 25 | 8 8 8 8 25 25 25 25 5 5 5 Average Capacity 15 | 7 8 8 8 8 23 25 14 5 5 5 Most Carried 25 | 7 8 8 8 8 25 24 19 5 5 5 Average Carried 14 | 3 7 7 8 7 22 18 11 4 4 4 Final Capacity 25 | 8 8 8 8 8 25 25 5 5 5 5 Final Carried 25 | 7 8 8 8 7 25 19 5 4 5 5 Class Distribution -------------------- 63% | Mutant 27% | Scavenger-Mutant 7% | Derelict-Mutant Dominant Class ---------------- Mutant | -10/Materials Mutant | -10/Mines Mutant | -10/Subcaves Mutant | -8/Recycling Scavenger-Mutant | -8/Scraptown Derelict-Skirmisher | -6/Factory Mutant | -6/Waste Mutant | -6/Factory Derelict-Mutant | -6/Lower Caves Derelict-Mutant | -6/Zion Resources | -11 -10 -10 -10 -8 -8 -6 -6 -6 -6 -6 ----------- Run | Yrd Mat Min Sub Rec Scr Fac Was Fac Low Zio Matter Collected 1371 | 250 569 46 52 215 64 . . 143 10 22 Remotely . | . . . . . . . . . . . Salvage Created 1813 | 37 775 42 66 419 . . 292 143 . 39 Parts 86 | 4 45 6 11 13 . . . 7 . . Haulers Intercepted 2 | . 1 . . . . . . 1 . . Recyclers Shooed 2 | . . 1 . 1 . . . . . . Parts Field Recycled . | . . . . . . . . . . . Retrieved Matter . | . . . . . . . . . . . Parts Self-Destructed 6 | . . . 6 . . . . . . . Prevented . | . . . . . . . . . . . Parts Restored . | . . . . . . . . . . . Kills | -11 -10 -10 -10 -8 -8 -6 -6 -6 -6 -6 ------- Run | Yrd Mat Min Sub Rec Scr Fac Was Fac Low Zio Combat Hostiles Destroyed 32 | . 20 3 5 2 . . 1 . . 1 Guns 27 | . 20 3 1 2 . . . . . 1 AOE 5 | . . . 4 . . . 1 . . . Classes Destroyed 11 | 1 4 . 2 2 . . 1 . . 1 Tunneler 4 | 2 . 1 . . . . . 1 . . Hauler 2 | . 1 . . . . . . 1 . . Recycler 4 | . . . . 4 . . . . . . Operator 3 | . 3 . . . . . . . . . Turret 2 | . . . 2 . . . . . . . Swarmer 13 | . 6 3 4 . . . . . . . Grunt 14 | . 14 . . . . . . . . . Sentry 2 | . . . . 2 . . . . . . Compactor 1 | . . . . . . . 1 . . . Subdweller 1 | . . . 1 . . . . . . . Mutant 1 | . . . . . . . . . . 1 Best Kill Streak 7 | 1 4 3 7 2 . . 1 2 . 1 Combat Bots Only 5 | . 4 3 5 1 . . 1 . . 1 Max Kills in Single Turn 1 | 1 1 1 1 1 . . 1 1 . 1 Gunslinging . | . . . . . . . . . . . Exploded 1 | . . . 1 . . . 1 . . . Melee . | . . . . . . . . . . . Uniques/NPCs Destroyed . | . . . . . . . . . . . Combat | -11 -10 -10 -10 -8 -8 -6 -6 -6 -6 -6 -------- Run | Yrd Mat Min Sub Rec Scr Fac Was Fac Low Zio Hostile Shots Fired 375 | . 108 17 49 18 . . 3 18 . 162 Missed 125 | . 35 1 16 6 . . . 8 . 59 Hits 250 | . 73 16 33 12 . . 3 10 . 103 Melee 11 | . . . . . . . 3 . . 8 Projectile 239 | . 73 16 33 12 . . . 10 . 95 AOE 1 | . . . . . . . . . . 1 Critical Strikes 7 | . 1 . . 1 . . 1 . . 4 Part Disruptions 4 | . . . . . . . . . 1 3 Damage Taken 3140 | . 789 126 144 177 . . 281 152 38 1433 Core 1070 | . 113 6 23 75 . . 134 135 . 584 Absorbed by Shields . | . . . . . . . . . . . Regen/Repaired (Parts) 114 | . 114 . . . . . . . . . Core Remaining (%) 56 | 100 . . . . 13 . . . . . Volleys Fired 140 | 4 79 9 12 18 . . 6 . . 12 Largest 3 | 2 2 2 2 2 . . 3 . . 2 Hottest 88 | 60 70 43 53 43 . . 88 . . 48 Shots Fired 272 | 8 158 18 20 36 . . 17 . . 15 Gun 254 | 8 158 18 13 36 . . 6 . . 15 Cannon . | . . . . . . . . . . . Launcher 18 | . . . 7 . . . 11 . . . Special . | . . . . . . . . . . . Kinetic 209 | 4 117 18 13 36 . . 6 . . 15 Thermal 45 | 4 41 . . . . . . . . . Explosive 18 | . . . 7 . . . 11 . . . Electromagnetic . | . . . . . . . . . . . Robot Hit Streak 13 | 3 9 6 3 9 . . 4 . . 13 Robot Miss Streak 5 | 1 5 2 3 2 . . 2 . . 1 Penetration Max . | . . . . . . . . . . . Secondary Targets 1 | . 1 . . . . . . . . . Max Gunslinging Chain 1 | . 1 . . . . . . . . . Shots Hit Robots 172 | 5 93 11 8 28 . . 11 1 . 15 Core Hits 92 | 3 39 3 17 11 . . 3 2 . 14 Critical Kills . | . . . . . . . . . . . Critical Parts Destroyed . | . . . . . . . . . . . Critical Strikes 3 | . 3 . . . . . . . . . Burn 3 | . 3 . . . . . . . . . Melee Attacks 1 | . . . . . . . . 1 . . Impact . | . . . . . . . . . . . Slashing 1 | . . . . . . . . 1 . . Piercing . | . . . . . . . . . . . Sneak Attacks 1 | . . . . . . . . 1 . . Combat Hostiles . | . . . . . . . . . . . Follow-up Attacks . | . . . . . . . . . . . Damage Inflicted 3339 | 60 1239 144 346 304 . . 754 101 . 391 Guns 2242 | 57 1223 129 51 303 . . 88 . . 391 Cannons . | . . . . . . . . . . . Explosions 961 | . . . 295 . . . 666 . . . Melee 90 | . . . . . . . . 90 . . Ramming 46 | 3 16 15 . 1 . . . 11 . . Kinetic 1882 | 36 884 129 51 303 . . 88 . . 391 Thermal 360 | 21 339 . . . . . . . . . Explosive 961 | . . . 295 . . . 666 . . . Electromagnetic . | . . . . . . . . . . . Impact . | . . . . . . . . . . . Slashing 90 | . . . . . . . . 90 . . Piercing . | . . . . . . . . . . . Highest Corruption 16 | . 1 1 1 1 . . 9 10 10 16 Average Corruption 2 | . 1 1 1 1 . . 9 9 10 9 Corruption Purged . | . . . . . . . . . . . Corruption Blocked . | . . . . . . . . . . . Effects 54 | . 8 5 2 13 . . 2 6 7 11 Message Errors 10 | . 3 1 . 3 . . . . 1 2 Matter Fused 16 | . 2 . 2 5 . . . 1 3 3 Heat Flow Errors 6 | . . 1 . . . . 1 2 1 1 Energy Discharges 9 | . 3 . . 2 . . 1 1 1 1 Parts Rejected 1 | . . 1 . . . . . . . . Parts Fused 1 | . . . . 1 . . . . . . Data Loss (minor) 7 | . . 2 . 1 . . . 1 1 2 Data Loss (major) 2 | . . . . . . . . 1 . 1 Alerts 1 | . . . . 1 . . . . . . Misdirections 1 | . . . . . . . . . . 1 Overload Shots . | . . . . . . . . . . . Overflow Damage . | . . . . . . . . . . . Projectiles . | . . . . . . . . . . . Explosions . | . . . . . . . . . . . Melee . | . . . . . . . . . . . Knockbacks . | . . . . . . . . . . . Impact . | . . . . . . . . . . . Kinetic . | . . . . . . . . . . . Secondary . | . . . . . . . . . . . Self-Inflicted Damage 151 | . . . . . . . 146 5 . . Shots 6 | . . . . . . . 6 . . . Rammed 10 | 1 5 2 . 1 . . . 1 . . Targets Rammed 11 | 1 5 3 . 1 . . . 1 . . Kicked . | . . . . . . . . . . . Crushed 1 | . . 1 . . . . . . . . Highest Temperature 328 | . 138 275 . 23 . . 286 171 328 246 Average Temperature 60 | . 37 24 . 5 . . 73 76 148 121 Received Heat Transfer 1230 | . 357 . 48 72 . . . 12 . 741 Siege Activations . | . . . . . . . . . . . Martial Activations . | . . . . . . . . . . . Shielding Activations . | . . . . . . . . . . . Robots Disrupted . | . . . . . . . . . . . Combat Hostiles . | . . . . . . . . . . . Robots Corrupted . | . . . . . . . . . . . Combat Hostiles . | . . . . . . . . . . . Parts Fried . | . . . . . . . . . . . Impact Corruptions . | . . . . . . . . . . . Robots Melted . | . . . . . . . . . . . Combat Hostiles . | . . . . . . . . . . . Parts Melted 3 | . 3 . . . . . . . . . Heat Transferred 1236 | 50 1186 . . . . . . . . . Parts Sabotaged . | . . . . . . . . . . . Parts Stolen . | . . . . . . . . . . . Parts Stripped . | . . . . . . . . . . . Power Chain Reactions . | . . . . . . . . . . . Alert | -11 -10 -10 -10 -8 -8 -6 -6 -6 -6 -6 ------- Run | Yrd Mat Min Sub Rec Scr Fac Was Fac Low Zio Maximum Alert Level 1 | . 1 . . . . . . . . . Low Security (%) 99 | 100 99 100 . 100 . 100 100 100 . . Level 1 . | . . . . . . . . . . . Level 2 . | . . . . . . . . . . . Level 3 . | . . . . . . . . . . . Level 4 . | . . . . . . . . . . . Level 5 . | . . . . . . . . . . . High Security . | . . . . . . . . . . . Max Security . | . . . . . . . . . . . Peak Influence 201 | 5 201 74 . 85 . . 19 25 . . Initial 85 | . . 60 . 85 . . . . . . Average 43 | . 97 15 . 7 . . 2 7 . . Influence Increases 1060 | 10 576 79 210 101 . . 29 55 . . Destroy 0b10 Robot/C 620 | . 400 60 120 40 . . . . . . Destroy 0b10 Robot/NC 65 | 10 20 5 . 20 . . . 10 . . Destroy Leader 92 | . 82 10 . . . . . . . . Allied During Kill 4 | . . 4 . . . . . . . . Successful Hack 54 | . 13 . . 41 . . . . . . Destroy Structure 30 | . 1 . . . . . 29 . . . Partial Spotted 15 | . . . . . . . . 15 . . Lose Combat Pursuer 180 | . 60 . 90 . . . . 30 . . Influence Decreases 1060 | 10 421 234 32 279 . . 29 50 5 . Entered New Map 191 | . . 95 . 93 . . . . 3 . Time Decay 850 | 10 421 139 32 186 . . 10 50 2 . Lost Part 19 | . . . . . . . 19 . . . Squads Dispatched 6 | . 6 . . . . . . . . . Investigation 2 | . 2 . . . . . . . . . Extermination . | . . . . . . . . . . . Reinforcement 4 | . 4 . . . . . . . . . Assault . | . . . . . . . . . . . Garrison . | . . . . . . . . . . . Intercept . | . . . . . . . . . . . Searches Triggered . | . . . . . . . . . . . Construction Impeded . | . . . . . . . . . . . Haulers Reinforced . | . . . . . . . . . . . Active Scanning Responses . | . . . . . . . . . . . Cargo Convoy Interrupts . | . . . . . . . . . . . Stealth | -11 -10 -10 -10 -8 -8 -6 -6 -6 -6 -6 --------- Run | Yrd Mat Min Sub Rec Scr Fac Was Fac Low Zio Distress Signals 4 | . 3 . . . . . . 1 . . Communications Jammed . | . . . . . . . . . . . Distress Signals . | . . . . . . . . . . . Times Spotted 87 | . 35 3 8 2 . . 6 4 . 29 Peak Tracking Total 23 | . 6 3 4 1 . . 5 3 . 23 Tactical Retreats 10 | . 3 . 2 . . . . 2 . 3 Traps | -11 -10 -10 -10 -8 -8 -6 -6 -6 -6 -6 ------- Run | Yrd Mat Min Sub Rec Scr Fac Was Fac Low Zio Traps Triggered 4 | . 1 . . . . 1 . 1 1 . Indirectly . | . . . . . . . . . . . Trap Hack Attempts . | . . . . . . . . . . . Triggered . | . . . . . . . . . . . Disarmed . | . . . . . . . . . . . Reprogrammed . | . . . . . . . . . . . Reused . | . . . . . . . . . . . Traps Extracted . | . . . . . . . . . . . Installed . | . . . . . . . . . . . Triggered . | . . . . . . . . . . . Machines | -11 -10 -10 -10 -8 -8 -6 -6 -6 -6 -6 ---------- Run | Yrd Mat Min Sub Rec Scr Fac Was Fac Low Zio Machines Disabled 3 | . . . 3 . . . . . . . Max in Single Turn 2 | . . . 2 . . . . . . . Machines Repaired . | . . . . . . . . . . . Machines Dismantled . | . . . . . . . . . . . Machines Sabotaged . | . . . . . . . . . . . Overloaded Fab Kills . | . . . . . . . . . . . Hacking | -11 -10 -10 -10 -8 -8 -6 -6 -6 -6 -6 --------- Run | Yrd Mat Min Sub Rec Scr Fac Was Fac Low Zio Machines Accessed 29 | . 7 . . 13 6 . . 2 1 . Terminals 12 | . 4 . . 6 . . . 2 . . Fabricators . | . . . . . . . . . . . Repair Stations 1 | . 1 . . . . . . . . . Recycling Units 7 | . 2 . . 5 . . . . . . Scanalyzers . | . . . . . . . . . . . Garrison Access . | . . . . . . . . . . . Total Hacks 120 | . 21 . . 53 43 . . 2 1 . Successful 101 | . 10 . . 47 43 . . . 1 . Failed 19 | . 11 . . 6 . . . 2 . . Catastrophic 2 | . 1 . . . . . . 1 . . Database Lockouts . | . . . . . . . . . . . Manual 28 | . 11 . . 14 . . . 3 . . Terminals 34 | . 12 . . 20 . . . 2 . . Fabricators . | . . . . . . . . . . . Repair Stations 4 | . 4 . . . . . . . . . Recycling Units 14 | . 5 . . 9 . . . . . . Scanalyzers . | . . . . . . . . . . . Garrison Access . | . . . . . . . . . . . Terminal Hacks 83 | . 2 . . 37 43 . . . 1 . Record 68 | . . . . 26 42 . . . . . Part Schematic 1 | . . . . 1 . . . . . . Robot Schematic 1 | . . . . 1 . . . . . . Robot Analysis 4 | . 1 . . 3 . . . . . . Prototype ID Bank 3 | . 1 . . 2 . . . . . . Open Door 1 | . . . . . . . . . 1 . Level Access Points 1 | . . . . 1 . . . . . . Branch Access Points 1 | . . . . 1 . . . . . . Fabricator Index 1 | . . . . 1 . . . . . . Zone Layout 1 | . . . . 1 . . . . . . Proto ID Catalog 1 | . . . . . 1 . . . . . Fabricator Hacks . | . . . . . . . . . . . Repair Station Hacks 2 | . 2 . . . . . . . . . Scan Component 1 | . 1 . . . . . . . . . Repair 1 | . 1 . . . . . . . . . Recycling Unit Hacks 9 | . 3 . . 6 . . . . . . Report Inventory 6 | . 2 . . 4 . . . . . . Retrieve Matter 1 | . . . . 1 . . . . . . Retrieve Components 2 | . 1 . . 1 . . . . . . Scanalyzer . | . . . . . . . . . . . Garrison Access Hacks . | . . . . . . . . . . . Unauthorized Hacks 7 | . 3 . . 4 . . . . . . Terminals 7 | . 3 . . 4 . . . . . . Botnet 7 | . 3 . . 4 . . . . . . Fabricators . | . . . . . . . . . . . Repair Stations . | . . . . . . . . . . . Recycling Units . | . . . . . . . . . . . Scanalyzers . | . . . . . . . . . . . Garrison Access . | . . . . . . . . . . . Data Cores Recovered . | . . . . . . . . . . . Used . | . . . . . . . . . . . Hacking Detections 18 | . 7 . . 8 . . . 3 . . Full Trace Events 4 | . 3 . . 1 . . . . . . Feedback Events 1 | . 1 . . . . . . . . . Corruption 1 | . 1 . . . . . . . . . Feedback Blocked . | . . . . . . . . . . . Robot Schematics Acquired 4 | . . . . 1 . . . . . 3 Robots Built . | . . . . . . . . . . . Authchips . | . . . . . . . . . . . Time . | . . . . . . . . . . . Total Robot Build Rating . | . . . . . . . . . . . Part Schematics Acquired 16 | . . . . 1 . . . . . 15 Parts Built . | . . . . . . . . . . . Authchips . | . . . . . . . . . . . Time . | . . . . . . . . . . . Total Part Build Rating . | . . . . . . . . . . . Part Studies Acquired . | . . . . . . . . . . . Parts Repaired 1 | . 1 . . . . . . . . . Time 26 | . 26 . . . . . . . . . Parts Recycled . | . . . . . . . . . . . Recycled Matter . | . . . . . . . . . . . Retrieved Matter . | . . . . . . . . . . . Retrieved Components 15 | . 10 . . 5 . . . . . . Parts Scanalyzed . | . . . . . . . . . . . Part Schematics Acquired . | . . . . . . . . . . . Parts Damaged . | . . . . . . . . . . . Bothacking | -11 -10 -10 -10 -8 -8 -6 -6 -6 -6 -6 ------------ Run | Yrd Mat Min Sub Rec Scr Fac Was Fac Low Zio Used RIF Installer . | . . . . . . . . . . . Robots Hacked . | . . . . . . . . . . . Non-combat . | . . . . . . . . . . . Combat . | . . . . . . . . . . . Robot Hacks Applied . | . . . . . . . . . . . Relay Couplers Released . | . . . . . . . . . . . Fabnet Peak Effective % . | . . . . . . . . . . . Robots Rewired . | . . . . . . . . . . . Allies Hacked . | . . . . . . . . . . . Hacks Repelled . | . . . . . . . . . . . Allies | -11 -10 -10 -10 -8 -8 -6 -6 -6 -6 -6 -------- Run | Yrd Mat Min Sub Rec Scr Fac Was Fac Low Zio Total Allies 1 | . . 1 . . . . . . . . Largest Group 1 | . . 1 . . . . . . . . Highest-Rated Group 31 | . . 31 . . . . . . . . Highest-Rated Ally 31 | . . 31 . . . . . . . . Total Orders . | . . . . . . . . . . . Ally Attacks . | . . . . . . . . . . . Total Damage . | . . . . . . . . . . . Kills . | . . . . . . . . . . . Allies Corrupted . | . . . . . . . . . . . Allies Melted . | . . . . . . . . . . . Intel | -11 -10 -10 -10 -8 -8 -6 -6 -6 -6 -6 ------- Run | Yrd Mat Min Sub Rec Scr Fac Was Fac Low Zio Active Infowar (turns) 4100 | 90 1776 634 487 129 . 82 36 . 193 673 Sensors 113 | . . . . . . 78 35 . . . Terrain 118 | . . . . . . 82 36 . . . Seismic 3116 | 90 1776 634 487 129 . . . . . . Jamming 866 | . . . . . . . . . 193 673 ECM 337 | . . . . . . . . . . 337 Robot Analysis Total 4 | . 1 . . 3 . . . . . . Derelict Logs Recovered 4 | . . . 1 . . . . . 1 2 Drone Launches . | . . . . . . . . . . . Drone Recoveries . | . . . . . . . . . . . Exploration | -11 -10 -10 -10 -8 -8 -6 -6 -6 -6 -6 ------------- Run | Yrd Mat Min Sub Rec Scr Fac Was Fac Low Zio Turns Passed 11837 | 187 1776 634 487 1563 5854 84 76 167 234 775 Spaces Moved 6044 | 100 898 375 284 931 2261 36 88 325 173 573 Core 524 | 3 . . . . . . 81 325 25 90 Treads 4889 | 97 898 375 284 931 2261 36 7 . . . Legs 631 | . . . . . . . . . 148 483 Wheels . | . . . . . . . . . . . Hover . | . . . . . . . . . . . Flight . | . . . . . . . . . . . Fastest Speed 50 | 50 160 160 160 160 160 213 50 50 50 50 Average Speed 184 | 156 160 160 160 160 256 213 62 50 126 129 Slowest Speed 400 | 160 160 160 160 160 400 213 213 50 140 150 Overloaded Moves . | . . . . . . . . . . . Propulsion Burnouts . | . . . . . . . . . . . Robots Hopped . | . . . . . . . . . . . Potential Cave-ins . | . . . . . . . . . . . Cave-ins Triggered . | . . . . . . . . . . . Exploration Rate (%) 53 | 6 97 53 19 97 95 . 70 8 25 65 Regions Visited 10 Branch Regions 6 Pre-discovered Areas 1 | . . . 1 . . . . . . . Known Exits Taken 1 | . . . . . 1 . . . . . Unknown Exits Taken 7 | 1 1 1 1 1 . . . 1 1 . Scrap Searched 7 | . . 1 . . 6 . . . . . Spaces Dug . | . . . . . . . . . . . Terrain Destroyed 75 | . . . 33 . . . 42 . . . Melee . | . . . . . . . . . . . Projectile . | . . . . . . . . . . . AOE 75 | . . . 33 . . . 42 . . . Terrain Rammed . | . . . . . . . . . . . Walls Destroyed . | . . . . . . . . . . . Machines Disabled . | . . . . . . . . . . . Actions | -11 -10 -10 -10 -8 -8 -6 -6 -6 -6 -6 --------- Run | Yrd Mat Min Sub Rec Scr Fac Was Fac Low Zio Total 6441 | 118 1083 392 299 973 2333 45 95 327 184 592 Wait 88 | . 69 . . . 17 . . . . 2 Move 6035 | 99 897 374 283 930 2260 36 87 324 172 573 Hop . | . . . . . . . . . . . Pick Up 57 | 7 10 3 . 2 30 1 . . 3 1 Fast Attach 21 | 7 4 . . . . . . . 7 3 Attach 13 | . 1 1 . 1 . 7 . 1 2 . Detach . | . . . . . . . . . . . Swap 18 | . 3 . 3 5 5 . 2 . . . Drop 38 | . 15 2 1 4 14 1 . . . 1 Fire 140 | 4 79 9 12 18 . . 6 . . 12 Melee 1 | . . . . . . . . 1 . . Ram 1 | . . . . . . . . 1 . . Kick . | . . . . . . . . . . . Crush 10 | 1 5 3 . 1 . . . . . . Escape Stasis . | . . . . . . . . . . . Rewire 19 | . . . . 12 7 . . . . . Trap . | . . . . . . . . . . . Miscellaneous . | . . . . . . . . . . . Route ------- -11/Scrapyard -10/Materials (discovered 5 exits: [*Mat x3] / [*Min x2]) -10/Mines (discovered 2 exits: [*Mat] / [*Sub]) -10/Subcaves -8/Recycling (discovered 2 exits: *Fac / *Scr) -8/Scraptown (discovered 2 exits: *Fac x2) -6/Factory -6/Waste -6/Factory -6/Lower Caves -6/Zion History --------- Turn | Location | Event 8 | -11/Scrapyard | Discovered new exit (range 15) 188 | -11/Scrapyard | Entered Materials 303 | -10/Materials | Build established: Mutant 401 | -10/Materials | Discovered new exit (range 16) 688 | -10/Materials | Derelicts attacked the area 874 | -10/Materials | Discovered new exit (range 15) 880 | -10/Materials | Discovered new exit (range 13) 969 | -10/Materials | Repaired Lgt. Treads 1387 | -10/Materials | Discovered new exit (range 8) 1718 | -10/Materials | Discovered new exit (range 4) 1964 | -10/Materials | Entered Mines 1967 | -10/Mines | Received a Mining Laser from a helpful Derelict 2020 | -10/Mines | A weapon hastily lodged in a ceiling crevice suddenly fell to the ground 2073 | -10/Mines | Received a Rocket Launcher from a helpful Derelict 2134 | -10/Mines | Discovered new exit (range 7) 2467 | -10/Mines | Found a Scrap Suit stashed away for nefarious purposes 2590 | -10/Mines | Discovered new exit (range 5) 2598 | -10/Mines | Entered Subcaves 3009 | -10/Subcaves | Core integrity fell below 50% 3031 | -10/Subcaves | Discovered new exit (range 12) 3085 | -10/Subcaves | Entered Recycling 3086 | -8/Recycling | Met a Zionite searching for Scraptown 3215 | -8/Recycling | Identified exit to Factory 4412 | -8/Recycling | Core integrity fell below 20% 4573 | -8/Recycling | Scanned before Scraplab entrance 4600 | -8/Recycling | Entered Scraplab 4642 | -8/Recycling | Discovered new exit (range 4) 4648 | -8/Recycling | Entered Scraptown 4648 | -8/Scraptown | System corruption cleaned by C-Scrubber 4711 | -8/Scraptown | Build established: Scavenger-Mutant 4790 | -8/Scraptown | Heard Great Nut preacher, LISTEN AND RECITE! 5922 | -8/Scraptown | Discovered exit to Factory (range 3) 6315 | -8/Scraptown | Visited TADAMA 6401 | -8/Scraptown | Visited Fellowship of the Rings 6502 | -8/Scraptown | Visited IN-MT5's Study 6596 | -8/Scraptown | Visited UFD Registry 6596 | -8/Scraptown | Registered with UFD as "Megacell" 6699 | -8/Scraptown | Visited Shadow of the Wyrm 6757 | -8/Scraptown | Visited Red Mages 6893 | -8/Scraptown | Visited Comm Corps 7461 | -8/Scraptown | Visited Cave Peace 7615 | -8/Scraptown | Visited Research Penetration Think Tank 7677 | -8/Scraptown | Visited DA-N13 Charitable Foundation 7689 | -8/Scraptown | Found DCF Scrap (30 items) 7896 | -8/Scraptown | Visited Junk Repository 7998 | -8/Scraptown | Build established: Mutant 8318 | -8/Scraptown | Visited Science Guys 8416 | -8/Scraptown | Visited Infowarlord's Domain 8434 | -8/Scraptown | Found Exp. Terrain Scanner 8704 | -8/Scraptown | Visited A0-MCA Data Center 8718 | -8/Scraptown | Given a B rating by A0-MCA 8728 | -8/Scraptown | Found A0-MCA's Component Scanner 8759 | -8/Scraptown | Visited Scrapoid Pod Storage 8819 | -8/Scraptown | Visited Science Testing Area 8918 | -8/Scraptown | Visited Botcube Research 9014 | -8/Scraptown | Visited Cartography Club 10010 | -8/Scraptown | Discovered exit to Factory (range 5) 10502 | -8/Scraptown | Entered Factory 10502 | -6/Factory | Evolved 8 slots: Power x1, Propulsion x3, Utility x3, Weapon x1 10519 | -6/Factory | Discovered new exit (range 21) 10586 | -6/Factory | Sucked down chute 10586 | -6/Factory | Entered Waste 10593 | -6/Waste | Spotted C-40 Crusher 10599 | -6/Waste | Spotted C-40 Crusher 10601 | -6/Waste | EMP discharged 10607 | -6/Waste | Destroyed C-40 Crusher 10618 | -6/Waste | Crushed by Compactor (1 part destroyed, 2 dropped) 10621 | -6/Waste | Crushed by Compactor (1 part destroyed, 2 dropped) 10622 | -6/Waste | Released all parts (6) 10631 | -6/Waste | Spotted C-40 Crusher 10635 | -6/Waste | Spotted C-40 Crusher 10637 | -6/Waste | Spotted C-40 Crusher 10647 | -6/Waste | Spotted C-40 Crusher 10652 | -6/Waste | Lost 3 parts (2u1w) 10654 | -6/Waste | Discovered new exit (range 16) 10662 | -6/Waste | Entered Factory 10757 | -6/Factory | System corruption reached 10% 10820 | -6/Factory | Discovered new exit (range 13) 10829 | -6/Factory | Entered Lower Caves 10967 | -6/Lower Caves | Learned location of 1 exit from Factory 11008 | -6/Lower Caves | Encountered a Warlord checkpoint 11049 | -6/Lower Caves | A Derelict revealed a hidden shortcut to a safe place 11063 | -6/Lower Caves | Entered Zion 11138 | -6/Zion | Build established: Derelict-Mutant 11160 | -6/Zion | Given A8's code to call for help 11198 | -6/Zion | System corruption cleaned by Quarantine Array 11648 | -6/Zion | Turned away by Imprinter 11680 | -6/Zion | Attempted to imprint without authorization 11680 | -6/Zion | Attacked by Zionites 11775 | -6/Zion | Core integrity fell below 50% 11816 | -6/Zion | Core integrity fell below 20% 11834 | -6/Zion | Lost 12 parts (1p4n4u3w) 11838 | -6/Zion | Destroyed by SE-H4V(z) with Makeshift Shrapnel Gun Last Messages --------------- Twisted Machinery. 11803_ Mak. ECM Suite destroyed. 11803_ S7-4TK(z) pulls a Mak. Laser out of the Twisted Machinery. 11803_ YQ-2UX(z) suffers critical hit (Burn). 5X-J5S(z) bursts out of the Twisted Machinery. 11805_ 5X-J5S(z) pulls a Mak. Hammer out of the Twisted Machinery. 11808_ XZ-UFL(z) pulls a Mak. Sword out of the Twisted Machinery. 11809_ YQ-2UX(z) destroyed. 11814_ RZ-YB3(z) pulls a Mak. Sword out of the Twisted Machinery. [Achievement: Hunted] 11814_ CR-UZA(z) pulls a Mak. Shrapnel Gun out of the Twisted Machinery. 11820_ System corrupted: Component data lost. 11834_ A8-2NG(z) pulls a Mak. Shrapnel Gun out of the Twisted Machinery. 11837_ System corrupted: Matter fused (-10). Map ----- +----------------------------------------------------+ | ?????????????????????????????????????????????????? | | ?????????????????????????????????????????????????? | | ?????????????????????????????????????????????????? | | ????????????######???????????????????????????????? | | ???????????##!#"!##??????????????????????????????? | | ????????????!!! !!#??????????????????????????????? | | ?????????????!!!!!???????????????????????????????? | | ????????????##!!"###?????????????????????????????? | | ???????????##" # #"#?????????????????????????????? | | ???????????#"#"" " ###???????????????????????????? | | ???????????# "" # "#####???????????????????????? | | ????????####"" """"##??????????????????????? | | ????????#"#""" #"""##?????????????????????? | | ????????#""""" """"#?????????????????????? | | ????????#"""" $"##??#"?????????????????? | | ???????##" "" ""###"#?????????????????? | | ???????#"" """"" """#"""" ??????????????? | | ??????##"" """"""M """" ?????????????? | | ??????#""" """"z "" ?????????????? | | ??????#"#"""" """ z """ ?????????????? | | ???????#"""#"" ""#zz """" ????????????? | | ???????#####"" ""z"z" """ "" "???????????? | | ???????????##" """"""l z""" "" ""??????????? | | ???????"""##"" """"" """" "??????????? | | ???????" " """ z z "" ""?????????? | | ?????"" "" z @ ""?????????? | | ?????""" "" ""zz ""?????????? | | ????? """ "z"z" """??????????? | | ???? ""z#" ????????? | | ?????""""" """ z"""" ????????? | | ??????"""" "#" ""#"" ?????????? | | ???????""" """ """"" """""" ?????????? | | ???????#""" """ " """""" ??????????? | | ????????"#"" "#" """##" ??????????? | | ?????????##"""""" """ ""#"#??? ???????????? | | ???????????#""""" "" ! ""#???????????????????? | | ?????????????##" ""M% ""###?????????????????? | | ????????????#""" """ * """"#?????????????????? | | ??????????##"""" "" #"""#"????????????????? | | ??????????""" """"""#???????????????? | | ?????????#"" """???????????????? | | ?????????"" """" ""???????????????? | | ????????"" ""##"" ""???????????????? | | ??????????????"??#""" """??????????????? | | ????????????????##"" ""???????????????? | | ??????????????###"""" ""???????????????? | | ##????????????#"""" " ""???????????????? | | "#####???######""" "" ""???????????????? | | """""#####""##""" "" """???????????????? | | """""""#"""""""" ""#???????????????? | +----------------------------------------------------+ Best States ------------- Heat Dissipation 37 Energy Generation 19 Energy Capacity 430 Matter Stores 300 Matter Capacity 300 Sight Range 16 Robot Scan Range 16 Terrain Scan Range 30 Terrain Scan Density 135 ECM Strength 2 Jamming Range 14 Armor Coverage 150 Evasion (%) 55 Recoil Reduction 3 Offensive Hacking 10 Item Schematics ----------------- Arm. Treads | -8/Recycling | Hacked Lgt. Fission Core | -6/Zion | Archive Adv. Plasma Cannon | -6/Zion | Archive Adv. Field Recycling Unit | -6/Zion | Archive Adv. Sensor Array | -6/Zion | Archive Point Defense System | -6/Zion | Archive Hpw. Shock Rifle | -6/Zion | Archive Adv. Actuator Array | -6/Zion | Archive Wave Gun | -6/Zion | Archive Energy Well | -6/Zion | Archive Imp. Target Analyzer | -6/Zion | Archive Arm. Medium Treads | -6/Zion | Archive Imp. Hacking Suite | -6/Zion | Archive Adv. System Shield | -6/Zion | Archive Coil Gun | -6/Zion | Archive Adv. Hardlight Generator | -6/Zion | Archive Robot Schematics ------------------ S-10 Pest | -8/Recycling | Hacked E-15 Imp | -6/Zion | Archive W-25 Informer | -6/Zion | Archive O-24 Administrator | -6/Zion | Archive Fabricated ------------ Nothing Repaired ---------- Lgt. Treads | 18% | -10/Materials Studied --------- None Alien Tech Used ----------------- None Achievements -------------- Civilization 2243 Hunted Live, Flee, And Rebuild Omniscient Cartographer You May Approach The Wall Challenges ------------ None Game ------ Seed PointPlasmaReconstructor Manual? 0 Play Time 01:01:33 Cumulative 19.8 hours Start 2025.12.28 @ 15:30:48 End 2025.12.28 @ 16:33:40 Sessions 1 Manual Loads 0 Difficulty Rogue Special Mode None Game No. 30 Rogue 30 Adventurer 0 Explorer 0 Win Type - Total 0 Types 0/0/0/0/0/0/0/0/0/0 Lore% 16 Gallery% 22 Achievement% 19 Wizard Run 0 Options --------- Layout 1 ASCII 0 Keyboard 0 Movement Arrows Keybinds 0 Fullscreen 2 Font 32/SmallcapsGlow Map View 50x35 Zoom Use 0% Tactical HUD 1 Map Filters NONE Filters NONE Steam 1 RUN: 8f477777-3d36-4b25-91ee-9f58daabc58c